fUSD/lending_fUSD_20260301
["ID","MTS","AMOUNT","RATE_DAILY","PERIOD"]
[406974833,1772392246017,-454.0,0.00017534,2]
[406974834,1772392246027,-151.0,0.00017534,2]
[406974835,1772392246036,-168.0,0.00017548,2]
[406974836,1772392246046,-218.0,0.0001755,2]
[406974837,1772392246056,-454.0,0.00017589,2]
[406974838,1772392246065,-400.0,0.000176,6]
[406974839,1772392246075,-2384.42421395,0.0001764,2]
[406974840,1772392246084,-297.52,0.0001764,2]
[406974841,1772392246095,-454.0,0.00017643,2]
[406974842,1772392246105,-150.0,0.0001766,2]
[406974843,1772392246114,-160.0,0.0001768,2]
[406974844,1772392246124,-150.0,0.00017696,2]
[406974845,1772392246134,-459.0,0.00017698,2]
[406974846,1772392246144,-400.0,0.000177,6]
[406974847,1772392246153,-500.0,0.00017726,7]
[406974848,1772392246162,-168.0,0.00017734,2]
[406974849,1772392246172,-168.0,0.00017744,2]
[406974850,1772392246182,-168.0,0.00017788,2]
[406974851,1772392246191,-400.0,0.000178,6]
[406974852,1772392246201,-151.0,0.00017808,2]
[406974853,1772392246211,-5000.0,0.00017808,2]
[406974854,1772392246224,-500.0,0.00017808,2]
[406974855,1772392246234,-151.0,0.00017808,2]
[406974856,1772392246243,-151.0,0.00017808,2]
[406974857,1772392246253,-151.000012,0.00017808,2]
[406974858,1772392246262,-800.0,0.00017808,2]
[406974859,1772392246272,-168.0,0.00017822,2]
[406974860,1772392246281,-150.0,0.00017846,2]
[406974861,1772392246291,-150.0,0.00017846,2]
[406974862,1772392246300,-150.0,0.00017846,2]
[406974863,1772392246310,-150.0,0.00017846,2]
[406974864,1772392246319,-150.0,0.00017846,2]
[406974865,1772392246329,-150.0,0.00017846,2]
[406974866,1772392246338,-150.0,0.00017846,2]
[406974867,1772392246347,-1041.0,0.00017846,2]
[406974868,1772392246357,-619.0,0.00017846,2]
[406974869,1772392246368,-3500.0,0.00017846,2]
[406974870,1772392246377,-150.0,0.00017846,2]
[406974871,1772392246387,-1278.0,0.00017846,2]
[406974872,1772392246396,-150.0,0.00017853,2]
[406974873,1772392246406,-500.0,0.00017863,2]
[406974874,1772392246415,-500.0,0.00017899,2]
[406974875,1772392246425,-500.0,0.00017899,2]
[406974876,1772392246434,-500.0,0.00017899,2]
[406974877,1772392246444,-25000.0,0.000179,3]
[406974878,1772392246454,-717.79777813,0.000179,2]
[406974879,1772392246466,-183.99849235,0.000179,2]
[406974880,1772392246476,-8742.67599942,0.000179,2]
[406974881,1772392246487,-17924.78435463,0.000179,2]
[406974882,1772392246497,-151.0,0.000179,2]
[406974883,1772392246597,-151.0,0.000179,2]
[406974884,1772392246608,-400.0,0.000179,6]
[406974885,1772392246618,-293.131948,0.000179,2]
[406974886,1772392246628,-293.131948,0.000179,2]
[406974887,1772392246637,-293.131948,0.000179,2]
[406974888,1772392246647,-293.131948,0.000179,2]
[406974889,1772392246657,-325.58915867,0.000179,2]
[406974890,1772392246667,-474.8970201,0.000179,2]
[406974891,1772392246676,-2940.96887375,0.000179,2]
[406974892,1772392246686,-1146.99550728,0.000179,2]
[406974893,1772392246695,-500.0,0.00017918,2]
[406974894,1772392246704,-168.0,0.00017955,2]
[406974895,1772392246714,-500.0,0.00017972,2]
[406974896,1772392246724,-290.12369262,0.00017973,2]
[406974897,1772392246733,-500.0,0.00017973,2]
[406974898,1772392246742,-500.0,0.00017973,2]
[406974899,1772392246751,-500.0,0.00017973,2]
[406974900,1772392246761,-500.0,0.00017973,2]
[406974901,1772392246770,-535.1535458,0.00017973,2]
[406974902,1772392246779,-500.0,0.00017973,2]
[406974903,1772392246792,-500.0,0.00017973,2]
[406974904,1772392246802,-150.0,0.00017978,2]
[406974905,1772392246813,-621.78829552,0.0001798,2]
[406974906,1772392246822,-251.11897888,0.00017982,2]
[406974907,1772392246832,-500.0,0.00017999,2]
[406974908,1772392246842,-500.0,0.00017999,2]
[406974909,1772392246851,-500.0,0.00017999,2]
[406974910,1772392246860,-500.0,0.00017999,2]
[406974911,1772392246871,-500.0,0.00017999,2]
[406974912,1772392246880,-500.0,0.00017999,2]
[406974913,1772392246890,-500.0,0.00017999,2]
[406974914,1772392246899,-500.0,0.00017999,2]
[406974915,1772392246910,-252.59652868,0.00017999,2]
[406974916,1772392246920,-500.0,0.00017999,2]
[406974917,1772392246930,-494.09872212,0.00017999,2]
[406974918,1772392246941,-500.0,0.00017999,2]
[406974919,1772392246950,-500.0,0.00017999,2]
[406974920,1772392246960,-500.0,0.00017999,2]
[406974921,1772392246970,-500.0,0.00017999,2]
[406974922,1772392246979,-500.0,0.00017999,2]
[406974923,1772392246989,-500.0,0.00017999,2]
[406974924,1772392246998,-500.0,0.00017999,2]
[406974925,1772392247008,-500.0,0.00017999,2]
[406974926,1772392247017,-500.0,0.00017999,2]
[406974927,1772392247027,-500.0,0.00017999,2]
[406974928,1772392247037,-595.07228117,0.00017999,2]
[406974929,1772392247047,-500.0,0.00017999,2]
[406974930,1772392247056,-500.0,0.00017999,2]
[406974931,1772392247066,-152.43247842,0.00017999,2]
[406974932,1772392247076,-500.0,0.00017999,2]
[406974933,1772392247086,-500.0,0.00017999,2]
[406974934,1772392247096,-500.0,0.00017999,2]
[406974935,1772392247105,-330.61629648,0.00017999,2]
[406974936,1772392247115,-500.0,0.00017999,2]
[406974937,1772392247126,-500.0,0.00017999,2]
[406974938,1772392247135,-500.0,0.00017999,2]
[406974939,1772392247145,-564.87520289,0.00017999,2]
[406974940,1772392247154,-300.0,0.00017999,2]
[406974941,1772392247164,-300.0,0.00017999,2]
[406974942,1772392247174,-322.79728336,0.00017999,2]
[406974943,1772392247183,-300.0,0.00017999,2]
[406974944,1772392247193,-151.0,0.00017999,2]
[406974945,1772392247203,-786.716127,0.00017999,2]
[406974946,1772392247213,-300.0,0.00017999,2]
[406974947,1772392247222,-786.716127,0.00017999,2]
[406974948,1772392247232,-786.716127,0.00017999,2]
[406974949,1772392247242,-786.716127,0.00017999,2]
[406974950,1772392247253,-668.216594,0.00017999,2]
[406974951,1772392247263,-668.216594,0.00017999,2]
[406974952,1772392247273,-668.216594,0.00017999,2]
[406974953,1772392247283,-668.216594,0.00017999,2]
[406974954,1772392247294,-150.0,0.00017999,2]
[406974955,1772392247303,-226.79197093,0.00017999,2]
[406974956,1772392247313,-627003.58455522,0.00018,2]
[406974957,1772392247623,-761.8297868,0.00017449,2]
[406974958,1772392247784,-1422.0,0.00016948,2]
[406974959,1772392247794,-578.0,0.00017449,2]
[406974960,1772392336434,500.0,9.003e-05,2]
[406974961,1772392336795,500.0,9.003e-05,2]
[406974962,1772392336908,500.0,9.003e-05,2]
[406974963,1772392337281,500.0,9.003e-05,2]
[406974964,1772392342070,500.0,9.003e-05,2]
[406974965,1772392342546,500.0,9.003e-05,2]
[406974966,1772392346450,869.88788903,9.003e-05,2]
[406974967,1772392348009,500.0,9.003e-05,2]
[406974968,1772392351730,600.0,9.003e-05,2]
[406974969,1772392352198,600.0,9.003e-05,2]
[406974970,1772392352675,600.0,9.003e-05,2]
[406974971,1772392352706,500.0,9.003e-05,2]
[406974972,1772392353132,600.0,9.003e-05,2]
[406974973,1772392353171,500.0,9.003e-05,2]
[406974974,1772392353210,500.0,9.003e-05,2]
[406974975,1772392353799,600.0,9.003e-05,2]
[406974976,1772392353829,500.0,9.003e-05,2]
[406974977,1772392354088,500.0,9.003e-05,2]
[406974978,1772392354134,500.0,9.003e-05,2]
[406974979,1772392354240,600.0,9.003e-05,2]
[406974980,1772392354562,500.0,9.003e-05,2]
[406974981,1772392354605,500.0,9.003e-05,2]
[406974982,1772392354721,600.0,9.003e-05,2]
[406974983,1772392354987,500.0,9.003e-05,2]
[406974984,1772392355096,500.0,9.003e-05,2]
[406974985,1772392355212,600.0,9.003e-05,2]
[406974986,1772392355531,500.0,9.003e-05,2]
[406974987,1772392355576,500.0,9.003e-05,2]
[406974988,1772392355696,600.0,9.003e-05,2]
[406974989,1772392356010,500.0,9.003e-05,2]
[406974990,1772392356059,500.0,9.003e-05,2]
[406974991,1772392356180,500.0,9.003e-05,2]
[406974992,1772392356212,600.0,9.003e-05,2]
[406974993,1772392356482,500.0,9.003e-05,2]
[406974994,1772392356544,500.0,9.003e-05,2]
[406974995,1772392356679,600.0,9.003e-05,2]
[406974996,1772392356712,800.0,9.003e-05,2]
[406974997,1772392357098,500.0,9.003e-05,2]
[406974998,1772392357160,600.0,9.003e-05,2]
[406974999,1772392357565,500.0,9.003e-05,2]
[406975000,1772392357680,800.0,9.003e-05,2]
[406975001,1772392358077,500.0,9.003e-05,2]
[406975002,1772392655158,500.0,9.003e-05,2]
[406975003,1772393431541,-500.0,0.00011968,2]
[406975004,1772393431551,-1199.11469588,0.00011968,2]
[406975005,1772393431562,-200.0,0.00012063,2]
[406975006,1772393431573,-1200.0,0.00012068,2]
[406975007,1772393431583,-300.0,0.00012068,2]
[406975008,1772393431593,-1200.0,0.00012068,2]
[406975009,1772393431603,-300.0,0.00012068,2]
[406975010,1772393431613,-300.0,0.00012068,2]
[406975011,1772393431622,-150.0,0.00012069,2]
[406975012,1772393431632,-300.0,0.00012069,2]
[406975013,1772393431642,-500.0,0.0001207,2]
[406975014,1772393431651,-500.0,0.0001207,2]
[406975015,1772393431660,-500.0,0.0001207,2]
[406975016,1772393431670,-500.0,0.0001207,2]
[406975017,1772393431680,-500.0,0.0001207,2]
[406975018,1772393431690,-500.0,0.0001207,2]
[406975019,1772393431699,-500.0,0.0001207,2]
[406975020,1772393431708,-500.0,0.0001207,2]
[406975021,1772393431718,-500.0,0.0001207,2]
[406975022,1772393431728,-500.0,0.0001207,2]
[406975023,1772393431738,-600.0,0.0001207,2]
[406975024,1772393431748,-600.0,0.0001207,2]
[406975025,1772393431758,-600.0,0.0001207,2]
[406975026,1772393431767,-600.0,0.0001207,2]
[406975027,1772393431776,-500.0,0.0001207,2]
[406975028,1772393431787,-600.0,0.0001207,2]
[406975029,1772393431800,-600.0,0.0001207,2]
[406975030,1772393431810,-600.0,0.0001207,2]
[406975032,1772393431820,-500.0,0.0001207,2]
[406975034,1772393431830,-205.42473317,0.0001207,2]
[406975036,1772393431841,-394.57526683,0.0001207,2]
[406975038,1772393431851,-500.0,0.0001207,2]
[406975039,1772393431861,-500.0,0.0001207,2]
[406975041,1772393431871,-600.0,0.0001207,2]
[406975043,1772393431881,-500.0,0.0001207,2]
[406975044,1772393431891,-600.0,0.0001207,2]
[406975046,1772393431900,-500.0,0.0001207,2]
[406975048,1772393431910,-600.0,0.0001207,2]
[406975050,1772393431919,-500.0,0.0001207,2]
[406975052,1772393431929,-600.0,0.0001207,2]
[406975054,1772393431938,-500.0,0.0001207,2]
[406975056,1772393431947,-600.0,0.0001207,2]
[406975057,1772393431956,-611.11529278,0.0001207,2]
[406975059,1772393431965,-500.0,0.0001207,2]
[406975061,1772393431975,-500.0,0.0001207,2]
[406975063,1772393431984,-500.0,0.0001207,2]
[406975065,1772393431995,-500.0,0.0001207,2]
[406975067,1772393432004,-500.0,0.0001207,2]
[406975069,1772393432014,-500.0,0.0001207,2]
[406975071,1772393432024,-500.0,0.0001207,2]
[406975073,1772393432034,-500.0,0.0001207,2]
[406975075,1772393432043,-500.0,0.0001207,2]
[406975076,1772393432053,-500.0,0.0001207,2]
[406975077,1772393432062,-500.0,0.0001207,2]
[406975078,1772393432072,-399.8050211,0.0001207,2]
[406975079,1772393432084,-100.1949789,0.0001207,2]
[406975080,1772393432094,-500.0,0.0001207,2]
[406975081,1772393432104,-32.89840025,0.0001207,2]
[406975082,1772393432116,-377.31590528,0.0001207,2]
[406975083,1772393432128,-89.78569447,0.0001207,2]
[406975084,1772393432137,-500.0,0.0001207,2]
[406975085,1772393432146,-500.0,0.0001207,2]
[406975086,1772393432156,-356.4813136,0.0001207,2]
[406975087,1772393432166,-500.0,0.0001207,2]
[406975088,1772393432179,-223.73299193,0.0001207,2]
[406975089,1772393432195,-132.74832167,0.0001207,2]
[406975090,1772393432210,-346.88,0.0001207,2]
[406975091,1772393432219,-356.4813136,0.0001207,2]
[406975092,1772393432229,-346.88,0.00012344,2]
[406975093,1772393432239,-1199.11469587,0.00012517,2]
[406975094,1772393432248,-200.0,0.00012611,2]
[406975095,1772393432258,-346.88,0.00012618,2]
[406975096,1772393432269,-257.91778498,0.00012781,2]
[406975097,1772393432279,-578.20924308,0.00012781,2]
[406975098,1772393432290,-743.50770149,0.00012781,2]
[406975099,1772393432301,-174.61919141,0.00012781,2]
[406975100,1772393432311,-644.79446246,0.00012781,2]
[406975101,1772393432320,-181.69809159,0.00012781,2]
[406975102,1772393432331,-500.0,0.00012781,2]
[406975103,1772393432341,-500.0,0.00012781,2]
[406975104,1772393432351,-500.0,0.00012781,2]
[406975105,1772393432361,-500.0,0.00012781,2]
[406975106,1772393432371,-500.0,0.00012781,2]
[406975107,1772393432381,-500.0,0.00012781,2]
[406975108,1772393432390,-500.0,0.00012781,2]
[406975109,1772393432399,-500.0,0.00012781,2]
[406975110,1772393432409,-500.0,0.00012781,2]
[406975111,1772393432418,-500.0,0.00012781,2]
[406975112,1772393432428,-500.0,0.00012781,2]
[406975113,1772393432437,-500.0,0.00012781,2]
[406975114,1772393432447,-500.0,0.00012781,2]
[406975115,1772393432456,-500.0,0.00012781,2]
[406975116,1772393432466,-500.0,0.00012781,2]
[406975117,1772393432475,-500.0,0.00012781,2]
[406975118,1772393432484,-500.0,0.00012781,2]
[406975119,1772393432495,-500.0,0.00012781,2]
[406975120,1772393432505,-500.0,0.00012781,2]
[406975121,1772393432515,-500.0,0.00012781,2]
[406975122,1772393432524,-500.0,0.00012781,2]
[406975123,1772393432534,-500.0,0.00012781,2]
[406975124,1772393432544,-500.0,0.00012781,2]
[406975125,1772393432554,-500.0,0.00012781,2]
[406975126,1772393432564,-179.28,0.00012805,2]
[406975127,1772393432574,-668.65185757,0.00012836,2]
[406975128,1772393432586,-150.0,0.00012876,2]
[406975129,1772393432595,-200.0,0.00012876,2]
[406975130,1772393432605,-150.0,0.00012876,2]
[406975131,1772393432614,-150.0,0.00012876,2]
[406975132,1772393432624,-150.0,0.00012876,2]
[406975133,1772393432634,-150.0,0.00012876,2]
[406975134,1772393432643,-150.0,0.00012876,2]
[406975135,1772393432653,-150.0,0.00012876,2]
[406975136,1772393432662,-150.0,0.00012876,2]
[406975137,1772393432672,-150.0,0.00012876,2]
[406975138,1772393432682,-693.3919763,0.00012891,2]
[406975139,1772393432692,-346.88,0.00012892,2]
[406975140,1772393432701,-150.0,0.00012931,2]
[406975141,1772393432711,-719.04747942,0.00012946,2]
[406975142,1772393432720,-200.0,0.00012986,2]
[406975143,1772393432730,-745.65223616,0.00013001,2]
[406975144,1772393432739,-773.2413689,0.00013056,2]
[406975145,1772393432748,-1199.11469587,0.00013065,2]
[406975146,1772393432759,-166.66,0.00013109,2]
[406975147,1772393432768,-801.85129955,0.00013111,2]
[406975148,1772393432779,-255.0,0.00013155,2]
[406975149,1772393432790,-200.0,0.00013159,2]
[406975150,1772393432799,-250.0,0.00013165,2]
[406975151,1772393432810,-250.0,0.00013165,2]
[406975152,1772393432819,-346.90421015,0.00013166,2]
[406975153,1772393432831,-831.51979763,0.00013166,2]
[406975154,1772393432841,-862.28603014,0.00013221,2]
[406975155,1772393432850,-160.83921,0.00013241,2]
[406975156,1772393432861,-420.0,0.00013247,2]
[406975157,1772393432871,-1680.0,0.00013275,2]
[406975158,1772393432880,-894.19061326,0.00013276,2]
[406975159,1772393432890,-267.46074303,0.00013329,2]
[406975160,1772393432899,-771.01748645,0.00013329,2]
[406975161,1772393432908,-181.08010149,0.00013329,2]
[406975162,1772393432918,-927.27566595,0.00013331,2]
[406975163,1772393432927,-166.66,0.00013385,2]
[406975164,1772393432937,-961.58486559,0.00013386,2]
[406975165,1772393432946,-997.16350561,0.00013441,2]
[406975166,1772393432965,-179.28,0.00013517,2]
[406975167,1772393432976,-166.66,0.00013661,2]
[406975168,1772393432986,-425.87434013,0.00013698,2]
[406975169,1772393432996,-8679.64062478,0.00013698,2]
[406975170,1772393433006,-2729.01135429,0.00013698,2]
[406975171,1772393433016,-13512.47631417,0.00013698,2]
[406975172,1772393433026,-150.0,0.000137,2]
[406975173,1772393433036,-150.0,0.000137,2]
[406975174,1772393433046,-150.0,0.000137,2]
[406975175,1772393433056,-215.76389777,0.000137,2]
[406975176,1772393433066,-200.0,0.00013707,2]
[406975177,1772393433076,-277.35679052,0.00013877,2]
[406975178,1772393433086,-187.78006525,0.00013877,2]
[406975179,1772393433096,-166.66,0.00013937,2]
[406975180,1772393433106,-392.437645,0.00014008,7]
[406975181,1772393433116,-516.0,0.0001411,2]
[406975182,1772393433126,-166.66,0.00014213,2]
[406975183,1772393433135,-179.28,0.00014228,2]
[406975184,1772393433145,-200.0,0.00014255,2]
[406975185,1772393433155,-433.0,0.00014338,2]
[406975186,1772393433165,-287.61899177,0.00014425,2]
[406975187,1772393433175,-194.72792766,0.00014425,2]
[406975188,1772393433186,-166.66,0.00014489,2]
[406975189,1772393433344,-587.0,0.00014541,2]
[406975190,1772393433353,-13999.22120149,0.000146,2]
[406975191,1772393433363,-700.0,0.000146,5]
[406975192,1772393433373,-27742.75109246,0.00014602,2]
[406975193,1772393433581,-678.45,0.00014602,2]
[406975194,1772393433600,-5537.39920754,0.00014602,2]
[406975195,1772393433610,-293.79073882,0.00014602,2]
[406975196,1772393433621,-2057.20926118,0.00014602,2]
[406975197,1772393433631,-5000.0,0.00014645,2]
[406975198,1772393433640,-2500.0,0.00014645,2]
[406975199,1772393433650,-1500.0,0.000147,5]
[406975200,1772393433659,-1363.28565984,0.000147,2]
[406975201,1772393433668,-291.21450418,0.000147,2]
[406975202,1772393433678,-163.87434327,0.000147,2]
[406975203,1772393433687,-11085.94012163,0.000147,2]
[406975204,1772393433698,-1960.64591584,0.000147,2]
[406975205,1772393433708,-5557.94585157,0.000147,2]
[406975206,1772393433719,-183.99849235,0.00014702,2]
[406975207,1772393433730,-4065.91226816,0.00014714,7]
[406975208,1772393433741,-666.0,0.00014744,2]
[406975209,1772393433750,-322.79728336,0.00014744,2]
[406975210,1772393433761,-305.84869809,0.00014744,2]
[406975211,1772393433771,-255.15492983,0.00014744,2]
[406975212,1772393433781,-643.01717768,0.00014744,2]
[406975213,1772393433790,-500.0,0.00014744,2]
[406975214,1772393433800,-500.0,0.00014744,2]
[406975215,1772393433809,-160.88049104,0.00014744,2]
[406975216,1772393433818,-500.0,0.00014744,2]
[406975217,1772393433827,-449.57555187,0.00014744,2]
[406975218,1772393433837,-500.0,0.00014745,2]
[406975219,1772393433846,-500.0,0.00014745,2]
[406975220,1772393433857,-500.0,0.00014745,2]
[406975221,1772393433867,-500.0,0.00014745,2]
[406975222,1772393433877,-500.0,0.00014745,2]
[406975223,1772393433886,-500.0,0.00014745,2]
[406975224,1772393433896,-500.0,0.00014745,2]
[406975225,1772393433906,-500.0,0.00014745,2]
[406975226,1772393433916,-252.59652868,0.00014745,2]
[406975227,1772393433926,-500.0,0.00014745,2]
[406975228,1772393433936,-500.0,0.00014745,2]
[406975229,1772393433947,-500.0,0.00014745,2]
[406975230,1772393433956,-152.43247842,0.00014745,2]
[406975231,1772393433966,-500.0,0.00014745,2]
[406975232,1772393433975,-494.09872212,0.00014745,2]
[406975233,1772393433984,-500.0,0.00014745,2]
[406975234,1772393433994,-500.0,0.00014745,2]
[406975235,1772393434005,-500.0,0.00014745,2]
[406975236,1772393434016,-500.0,0.00014745,2]
[406975237,1772393434026,-500.0,0.00014745,2]
[406975238,1772393434037,-330.61629648,0.00014745,2]
[406975239,1772393434047,-500.0,0.00014745,2]
[406975240,1772393434056,-500.0,0.00014745,2]
[406975241,1772393434067,-500.0,0.00014745,2]
[406975242,1772393434078,-500.0,0.00014745,2]
[406975243,1772393434088,-500.0,0.00014745,2]
[406975244,1772393434098,-564.87520289,0.00014745,2]
[406975245,1772393434108,-528.85,0.00014745,2]
[406975246,1772393434117,-500.0,0.00014745,2]
[406975247,1772393434126,-500.0,0.00014745,2]
[406975248,1772393434136,-500.0,0.00014745,2]
[406975249,1772393434145,-500.0,0.00014745,2]
[406975250,1772393434155,-496.18252965,0.00014745,2]
[406975251,1772393434167,-3.81747035,0.00014745,2]
[406975252,1772393434176,-500.0,0.00014745,2]
[406975253,1772393434186,-477.66092866,0.00014745,2]
[406975255,1772393437613,-22.33907134,0.00014745,2]
[406975256,1772393437622,-500.0,0.00014745,2]
[406975257,1772393437632,-191.37740063,0.00014745,2]
[406975258,1772393437672,-308.62259937,0.00014745,2]
[406975259,1772393437681,-500.0,0.00014745,2]
[406975260,1772393437691,-9075.0,0.00014745,2]
[406975261,1772393437700,-57863.94958288,0.00014745,2]
[406975262,1772393437726,-334.615,0.00014745,2]
[406975263,1772393437737,-434.98163106,0.00014745,2]
[406975264,1772393437748,-3062.49219433,0.00014745,2]
[406975265,1772393437759,-1138.1638568,0.00014745,2]
[406975266,1772393437770,-440.68555578,0.00014745,2]
[406975267,1772393437781,-1739.5203201,0.00014745,2]
[406975268,1772393437795,-593.2033067,0.00014745,2]
[406975269,1772393437809,-2505.70364225,0.00014745,2]
[406975270,1772393437823,-53772.4944927,0.00014745,2]
[406975271,1772393437838,-1389.5563097,0.00014745,2]
[406975272,1772393437854,-541.81927989,0.00014745,2]
[406975273,1772393437867,-1606.43883667,0.00014745,2]
[406975274,1772393437885,-519.57820263,0.00014745,2]
[406975275,1772393437905,-10043.57037895,0.00014745,2]
[406975276,1772393437925,-20310.0,0.00014745,2]
[406975277,1772393437950,-3999.99999999,0.00014745,2]
[406975292,1772393441655,-12261.14410848,0.00014745,2]
[406975293,1772393441669,-1350026.86267899,0.00014745,2]
[406975294,1772393441709,-492.65507974,0.00014745,2]
[406975295,1772393441722,-883.15138334,0.00014745,2]
[406975296,1772393441733,-269019.34935834,0.00014745,2]
[406975297,1772393441763,-956.338213,0.00014745,2]
[406975298,1772393441775,-542.688,0.00014745,2]
[406975299,1772393441787,-1965.0,0.00014745,2]
[406975300,1772393442079,-139542.68824043,0.00014745,2]
[406975301,1772393442092,-380.30947352,0.00014745,2]
[406975302,1772393442108,-563633.04087373,0.00014745,2]
[406975303,1772393442118,-7944.52492268,0.000148,2]
[406975304,1772393442128,-2300.0,0.000148,5]
[406975306,1772393442137,-500.0,0.00014801,2]
[406975307,1772393442147,-200.0,0.00014803,2]
[406975308,1772393442156,-166.66,0.00014824,2]
[406975309,1772393442166,-3100.0,0.000149,5]
[406975310,1772393442176,-179.28,0.00014939,2]
[406975311,1772393442186,-13999.22120146,0.00014967,2]
[406975313,1772393442196,-410.72005986,0.00014973,2]
[406975315,1772393442206,-201.93286099,0.00014973,2]
[406975317,1772393442218,-500.0,0.00015041,2]
[406975319,1772393442228,-11085.94012159,0.00015056,2]
[406975321,1772393442237,-150.0,0.00015083,2]
[406975323,1772393442247,-1278.0,0.00015083,2]
[406975324,1772393442390,-921.0,0.00015083,2]
[406975325,1772393442403,-1211.0,0.00015083,2]
[406975328,1772393442414,-1054.484,0.00015083,2]
[406975330,1772393442423,-619.0,0.00015083,2]
[406975331,1772393442432,-5985.0,0.00015083,2]
[406975332,1772393442442,-1363.28565978,0.00015157,2]
[406975333,1772393442453,-3108.88,0.0001531,2]
[406975335,1772393442462,-150.99,0.0001531,2]
[406975336,1772393442474,-166.66,0.00015313,2]
[406975337,1772393442485,-13999.22120146,0.00015333,2]
[406975338,1772393442496,-5557.94585155,0.0001534,2]
[406975339,1772393442507,-19770.3931,0.00015356,2]
[406975340,1772393442516,-1000.0,0.00015356,2]
[406975341,1772393442527,-11085.94012159,0.00015411,2]
[406975343,1772393442537,-7789.46,0.00015471,2]
[406975345,1772393442546,-599.60298507,0.0001552,2]
[406975347,1772393442555,-209.40437684,0.00015521,2]
[406975348,1772393442565,-153.04785948,0.00015589,2]
[406975349,1772393442574,-1363.28565978,0.00015614,2]
[406975350,1772393442584,-736.0,0.00015629,2]
[406975351,1772393442593,-179.28,0.00015651,2]
[406975352,1772393442602,-13999.22120146,0.000157,2]
[406975353,1772393442611,-1289.755,0.00015749,2]
[406975354,1772393442621,-154.716,0.00015749,2]
[406975355,1772393442631,-11085.94012159,0.00015767,2]
[406975356,1772393442640,-166.66,0.00015802,2]
[406975357,1772393442650,-823.0,0.00015962,2]
[406975358,1772393442659,-5557.94585155,0.0001598,2]
[406975359,1772393442669,-203.734684,0.00016,2]
[406975360,1772393442679,-3292.0,0.00016063,2]
[406975361,1772393442689,-217.15233878,0.00016069,2]
[406975362,1772393442699,-1363.28565978,0.00016071,2]
[406975363,1772393442709,-600.0,0.00016082,2]
[406975364,1772393442719,-1600.0,0.00016082,2]
[406975365,1772393442730,-11085.94012159,0.00016122,2]
[406975366,1772393442740,-174.09452548,0.00016196,2]
[406975367,1772393442749,-200.0,0.000162,2]
[406975368,1772393442759,-200.0,0.000162,2]
[406975369,1772393442768,-200.0,0.000162,2]
[406975370,1772393442777,-243.0,0.000162,2]
[406975371,1772393442787,-800.0,0.000162,2]
[406975372,1772393442796,-800.0,0.000162,2]
[406975373,1772393442805,-800.0,0.000162,2]
[406975374,1772393442815,-800.0,0.000162,2]
[406975375,1772393442824,-800.0,0.000162,2]
[406975376,1772393442833,-800.0,0.000162,2]
[406975377,1772393442854,-800.0,0.000162,2]
[406975378,1772393442863,-800.0,0.000162,2]
[406975379,1772393442873,-800.0,0.000162,2]
[406975380,1772393442885,-800.0,0.000162,2]
[406975381,1772393442895,-800.0,0.000162,2]
[406975382,1772393442905,-800.0,0.000162,2]